lending/lending_fUSD_20250114
["ID","MTS","AMOUNT","RATE_DAILY","PERIOD"]
[348862350,1736825438229,-500.0,9.997e-05,2]
[348862351,1736825438240,-500.0,9.997e-05,2]
[348862352,1736825438251,-500.0,9.997e-05,2]
[348862353,1736825438264,-500.0,9.997e-05,2]
[348862354,1736825438277,-500.0,9.997e-05,2]
[348862355,1736825438286,-500.0,9.997e-05,2]
[348862356,1736825438296,-500.0,9.997e-05,2]
[348862357,1736825438305,-500.0,9.997e-05,2]
[348862358,1736825438315,-500.0,9.997e-05,2]
[348862359,1736825438324,-500.0,9.997e-05,2]
[348862360,1736825438333,-505.48757923,9.997e-05,2]
[348862361,1736825438342,-500.0,9.997e-05,2]
[348862362,1736825438351,-500.0,9.997e-05,2]
[348862363,1736825438362,-500.0,9.997e-05,2]
[348862364,1736825438372,-661.15,9.997e-05,2]
[348862365,1736825438381,-500.0,9.997e-05,2]
[348862366,1736825438391,-504.6805461,9.997e-05,2]
[348862367,1736825438401,-500.0,9.997e-05,2]
[348862368,1736825438411,-500.0,9.997e-05,2]
[348862369,1736825438422,-500.0,9.997e-05,2]
[348862370,1736825438432,-500.0,9.997e-05,2]
[348862371,1736825438440,-500.0,9.997e-05,2]
[348862372,1736825438450,-500.0,9.997e-05,2]
[348862373,1736825438460,-500.0,9.997e-05,2]
[348862374,1736825438471,-500.0,9.997e-05,2]
[348862375,1736825438481,-500.0,9.997e-05,2]
[348862376,1736825438491,-625.03,9.997e-05,2]
[348862377,1736825438500,-500.0,9.997e-05,2]
[348862378,1736825438512,-500.0,9.997e-05,2]
[348862379,1736825438522,-500.0,9.997e-05,2]
[348862380,1736825438531,-500.0,9.997e-05,2]
[348862381,1736825438540,-500.0,9.997e-05,2]
[348862382,1736825438549,-981.07,9.997e-05,2]
[348862383,1736825438559,-500.0,9.997e-05,2]
[348862384,1736825438568,-500.0,9.997e-05,2]
[348862385,1736825438578,-500.0,9.997e-05,2]
[348862386,1736825438587,-500.0,9.997e-05,2]
[348862387,1736825438597,-500.0,9.997e-05,2]
[348862388,1736825438607,-500.0,9.997e-05,2]
[348862389,1736825438616,-500.0,9.997e-05,2]
[348862390,1736825438625,-886.28,9.997e-05,2]
[348862391,1736825438635,-500.0,9.997e-05,2]
[348862392,1736825438644,-500.0,9.997e-05,2]
[348862393,1736825438653,-500.0,9.997e-05,2]
[348862394,1736825438663,-500.0,9.997e-05,2]
[348862395,1736825438671,-546.99943084,9.997e-05,2]
[348862396,1736825438681,-500.0,9.997e-05,2]
[348862397,1736825438690,-405.22444842,9.997e-05,2]
[348862398,1736825438700,-500.0,9.997e-05,2]
[348862399,1736825438709,-500.0,9.997e-05,2]
[348862400,1736825438719,-500.0,9.997e-05,2]
[348862401,1736825438729,-500.0,9.997e-05,2]
[348862402,1736825438739,-500.0,9.997e-05,2]
[348862403,1736825438748,-500.0,9.997e-05,2]
[348862404,1736825438757,-500.0,9.997e-05,2]
[348862405,1736825438767,-554.91,9.997e-05,2]
[348862407,1736825438776,-631.77,9.997e-05,2]
[348862408,1736825438786,-504.50041336,9.997e-05,2]
[348862409,1736825438795,-1328.7,9.997e-05,2]
[348862410,1736825438806,-500.0,9.997e-05,2]
[348862412,1736825438816,-500.0,9.997e-05,2]
[348862414,1736825438826,-500.0,9.997e-05,2]
[348862416,1736825438836,-500.0,9.997e-05,2]
[348862418,1736825438846,-500.0,9.997e-05,2]
[348862419,1736825438855,-500.0,9.997e-05,2]
[348862420,1736825438865,-500.0,9.997e-05,2]
[348862421,1736825438875,-500.0,9.997e-05,2]
[348862422,1736825438885,-500.0,9.997e-05,2]
[348862423,1736825438894,-500.0,9.997e-05,2]
[348862424,1736825438904,-500.0,9.997e-05,2]
[348862425,1736825438913,-500.0,9.997e-05,2]
[348862426,1736825438923,-1334.61,9.997e-05,2]
[348862427,1736825438933,-459.47467879,9.997e-05,2]
[348862428,1736825438944,-1424.28,9.997e-05,2]
[348862429,1736825438954,-681.64,9.997e-05,2]
[348862430,1736825438963,-500.0,9.997e-05,2]
[348862431,1736825438973,-601.85,9.997e-05,2]
[348862432,1736825438982,-271.1645779,9.997e-05,2]
[348862433,1736825438992,-500.0,9.997e-05,2]
[348862434,1736825439002,-500.0,9.997e-05,2]
[348862435,1736825439012,-500.0,9.997e-05,2]
[348862436,1736825439021,-506.34983665,9.997e-05,2]
[348862437,1736825439031,-537.30764578,9.997e-05,2]
[348862438,1736825439040,-579.07,9.997e-05,2]
[348862439,1736825439050,-236.06443985,9.997e-05,2]
[348862440,1736825439060,-500.0,9.997e-05,2]
[348862441,1736825439069,-500.0,9.997e-05,2]
[348862442,1736825439078,-500.0,9.997e-05,2]
[348862443,1736825439088,-500.0,9.997e-05,2]
[348862444,1736825439098,-500.0,9.997e-05,2]
[348862445,1736825439107,-290.48386529,9.997e-05,2]
[348862446,1736825439117,-500.0,9.997e-05,2]
[348862447,1736825439127,-2495.79,9.997e-05,2]
[348862448,1736825439137,-500.0,9.997e-05,2]
[348862449,1736825439147,-553.03,9.997e-05,2]
[348862450,1736825439156,-500.0,9.997e-05,2]
[348862451,1736825439167,-500.0,9.997e-05,2]
[348862452,1736825439177,-1278.17,9.997e-05,2]
[348862453,1736825439187,-578.31,9.997e-05,2]
[348862454,1736825439197,-507.78168701,9.997e-05,2]
[348862455,1736825439206,-710.04,9.997e-05,2]
[348862456,1736825439215,-500.0,9.997e-05,2]
[348862457,1736825439224,-500.0,9.997e-05,2]
[348862458,1736825439235,-2429.51,9.997e-05,2]
[348862459,1736825439246,-500.0,9.997e-05,2]
[348862460,1736825439257,-500.0,9.997e-05,2]
[348862461,1736825439269,-500.0,9.997e-05,2]
[348862462,1736825439281,-503.46414262,9.997e-05,2]
[348862463,1736825439291,-504.4444504,9.997e-05,2]
[348862464,1736825439301,-333.161959,9.997e-05,2]
[348862465,1736825439312,-500.0,9.997e-05,2]
[348862466,1736825439323,-336.47648014,9.997e-05,2]
[348862467,1736825439333,-512.27662292,9.997e-05,2]
[348862468,1736825439343,-3193.89,9.997e-05,2]
[348862469,1736825439353,-500.0,9.997e-05,2]
[348862470,1736825439362,-500.0,9.997e-05,2]
[348862471,1736825439373,-500.0,9.997e-05,2]
[348862472,1736825439382,-500.0,9.997e-05,2]
[348862473,1736825439391,-500.0,9.997e-05,2]
[348862474,1736825439401,-748.71,9.997e-05,2]
[348862475,1736825439411,-500.0,9.997e-05,2]
[348862476,1736825439421,-500.0,9.997e-05,2]
[348862477,1736825439433,-500.0,9.997e-05,2]
[348862478,1736825439443,-1359.72,9.997e-05,2]
[348862479,1736825439454,-902.93,9.997e-05,2]
[348862480,1736825439464,-500.0,9.997e-05,2]
[348862481,1736825439473,-500.0,9.997e-05,2]
[348862482,1736825439483,-500.0,9.997e-05,2]
[348862483,1736825439492,-500.0,9.997e-05,2]
[348862484,1736825439502,-500.0,9.997e-05,2]
[348862485,1736825439511,-500.0,9.997e-05,2]
[348862486,1736825439521,-530.35,9.997e-05,2]
[348862487,1736825439531,-500.0,9.997e-05,2]
[348862488,1736825439540,-500.0,9.997e-05,2]
[348862489,1736825439550,-500.0,9.997e-05,2]
[348862490,1736825439559,-500.0,9.997e-05,2]
[348862491,1736825439568,-2337.41,9.997e-05,2]
[348862492,1736825439578,-500.0,9.997e-05,2]
[348862493,1736825439587,-500.0,9.997e-05,2]
[348862494,1736825439596,-579.24,9.997e-05,2]
[348862495,1736825439818,-506.43847056,9.997e-05,2]
[348862496,1736825439828,-500.0,9.997e-05,2]
[348862497,1736825439838,-500.0,9.997e-05,2]
[348862498,1736825439848,-500.0,9.997e-05,2]
[348862499,1736825439857,-500.0,9.997e-05,2]
[348862500,1736825439867,-500.0,9.997e-05,2]
[348862501,1736825439876,-500.0,9.997e-05,2]
[348862502,1736825439886,-500.0,9.997e-05,2]
[348862503,1736825439896,-675.13,9.997e-05,2]
[348862504,1736825439906,-500.0,9.997e-05,2]
[348862505,1736825439916,-500.0,9.997e-05,2]
[348862506,1736825439926,-500.0,9.997e-05,2]
[348862507,1736825439936,-500.0,9.997e-05,2]
[348862508,1736825439945,-500.0,9.997e-05,2]
[348862509,1736825439955,-500.0,9.997e-05,2]
[348862510,1736825439964,-500.0,9.997e-05,2]
[348862511,1736825439974,-500.0,9.997e-05,2]
[348862512,1736825439984,-1187.7,9.997e-05,2]
[348862513,1736825439994,-500.0,9.997e-05,2]
[348862514,1736825440003,-500.0,9.997e-05,2]
[348862515,1736825440014,-500.0,9.997e-05,2]
[348862516,1736825440024,-500.0,9.997e-05,2]
[348862517,1736825440034,-500.0,9.997e-05,2]
[348862518,1736825440044,-805.88,9.997e-05,2]
[348862519,1736825440053,-1298.94,9.997e-05,2]
[348862520,1736825440063,-500.0,9.997e-05,2]
[348862521,1736825440073,-681.33,9.998e-05,2]
[348862522,1736825440083,-500.55899994,9.998e-05,2]
[348862523,1736825440093,-500.0,9.998e-05,2]
[348862524,1736825440102,-506.20187996,9.998e-05,2]
[348862525,1736825440112,-1849.94,9.998e-05,2]
[348862526,1736825440122,-504.32998217,9.998e-05,2]
[348862527,1736825440132,-500.0,9.998e-05,2]
[348862528,1736825440141,-500.0,9.998e-05,2]
[348862529,1736825440152,-310.02653662,9.998e-05,2]
[348862530,1736825440162,-505.16894467,9.998e-05,2]
[348862531,1736825440172,-611.09,9.998e-05,2]
[348862532,1736825440182,-500.0,9.998e-05,2]
[348862533,1736825440191,-1166.75,9.998e-05,2]
[348862534,1736825440201,-757.47,9.998e-05,2]
[348862535,1736825440211,-1334.37,9.998e-05,2]
[348862536,1736825440220,-500.0,9.998e-05,2]
[348862537,1736825440230,-500.0,9.998e-05,2]
[348862538,1736825440240,-500.0,9.998e-05,2]
[348862539,1736825440249,-500.0,9.998e-05,2]
[348862540,1736825440259,-506.08,9.998e-05,2]
[348862541,1736825440272,-1000.0,9.998e-05,2]
[348862542,1736825440282,-272.44065722,9.998e-05,2]
[348862543,1736825440292,-500.0,9.998e-05,2]
[348862544,1736825440301,-807.8,9.998e-05,2]
[348862545,1736825440311,-500.0,9.998e-05,2]
[348862546,1736825440320,-500.0,9.998e-05,2]
[348862547,1736825440330,-1805.16,9.998e-05,2]
[348862548,1736825440339,-1573.57,9.998e-05,2]
[348862549,1736825440349,-500.0,9.998e-05,2]
[348862550,1736825440359,-2094.67,9.998e-05,2]
[348862551,1736825440368,-2874.78,9.998e-05,2]
[348862552,1736825440377,-1680.84,9.998e-05,2]
[348862553,1736825440387,-500.0,9.998e-05,2]
[348862554,1736825440397,-1060.98,9.998e-05,2]
[348862555,1736825440406,-2627.17,9.998e-05,2]
[348862556,1736825440424,-500.0,9.998e-05,2]
[348862557,1736825440433,-507.17823136,9.998e-05,2]
[348862558,1736825440443,-773.99,9.998e-05,2]
[348862559,1736825440452,-500.0,9.998e-05,2]
[348862560,1736825440461,-500.0,9.998e-05,2]
[348862561,1736825440471,-1808.714,9.999e-05,2]
[348862562,1736825440480,-153.07332177,9.999e-05,2]
[348862563,1736825440490,-509.66435466,9.999e-05,2]
[348862564,1736825440499,-500.0,9.999e-05,2]
[348862565,1736825440510,-202.11568131,9.999e-05,2]
[348862566,1736825440519,-792.74,9.999e-05,2]
[348862567,1736825440528,-240.77428609,9.999e-05,2]
[348862568,1736825440538,-500.0,9.999e-05,2]
[348862569,1736825440547,-500.0,9.999e-05,2]
[348862570,1736825440556,-500.0,9.999e-05,2]
[348862571,1736825440566,-611.26,9.999e-05,2]
[348862572,1736825440575,-578.24,9.999e-05,2]
[348862573,1736825440585,-500.0,9.999e-05,2]
[348862574,1736825440594,-500.0,9.999e-05,2]
[348862575,1736825440603,-818.12,9.999e-05,2]
[348862576,1736825440613,-524.42,9.999e-05,2]
[348862577,1736825440623,-657.29,9.999e-05,2]
[348862578,1736825440633,-500.0,9.999e-05,2]
[348862579,1736825440644,-500.0,9.999e-05,2]
[348862580,1736825440654,-500.0,9.999e-05,2]
[348862581,1736825440663,-500.0,9.999e-05,2]
[348862582,1736825440673,-501.73270759,9.999e-05,2]
[348862583,1736825440684,-500.0,9.999e-05,2]
[348862584,1736825440694,-743.91,9.999e-05,2]
[348862585,1736825440704,-500.0,9.999e-05,2]
[348862586,1736825440714,-500.0,9.999e-05,2]
[348862587,1736825440724,-723.47,9.999e-05,2]
[348862588,1736825440734,-500.0,9.999e-05,2]
[348862589,1736825440743,-500.0,9.999e-05,2]
[348862590,1736825440753,-691.79,9.999e-05,2]
[348862591,1736825440764,-500.0,9.999e-05,2]
[348862592,1736825440773,-500.0,9.999e-05,2]
[348862593,1736825440784,-500.0,9.999e-05,2]
[348862594,1736825440794,-500.0,9.999e-05,2]
[348862595,1736825440804,-500.0,9.999e-05,2]
[348862596,1736825440814,-500.0,9.999e-05,2]
[348862597,1736825440824,-500.0,9.999e-05,2]
[348862598,1736825440833,-601.70414789,9.999e-05,2]
[348862599,1736825440843,-500.0,9.999e-05,2]
[348862600,1736825440853,-500.0,9.999e-05,2]
[348862601,1736825440862,-823.08,9.999e-05,2]
[348862602,1736825440872,-500.0,9.999e-05,2]
[348862603,1736825440882,-500.0,9.999e-05,2]
[348862604,1736825440891,-500.0,9.999e-05,2]
[348862605,1736825440901,-821.19,9.999e-05,2]
[348862606,1736825440910,-500.0,9.999e-05,2]
[348862607,1736825440921,-773.9,9.999e-05,2]
[348862608,1736825440930,-500.0,9.999e-05,2]
[348862609,1736825440940,-500.0,9.999e-05,2]
[348862610,1736825440950,-805.86,9.999e-05,2]
[348862611,1736825440961,-500.0,9.999e-05,2]
[348862612,1736825440971,-513.25,9.999e-05,2]
[348862613,1736825440981,-500.0,9.999e-05,2]
[348862614,1736825440991,-500.0,9.999e-05,2]
[348862615,1736825441000,-500.0,9.999e-05,2]
[348862616,1736825441011,-255.545433,9.999e-05,2]
[348862617,1736825441020,-837.33,9.999e-05,2]
[348862618,1736825441030,-500.0,9.999e-05,2]
[348862619,1736825441040,-500.0,9.999e-05,2]
[348862620,1736825441049,-500.0,9.999e-05,2]
[348862621,1736825441059,-500.0,9.999e-05,2]
[348862622,1736825441069,-244.601001,9.999e-05,2]
[348862623,1736825441080,-500.0,9.999e-05,2]
[348862624,1736825441091,-500.0,9.999e-05,2]
[348862625,1736825441101,-850.54,9.999e-05,2]
[348862626,1736825441112,-500.0,9.999e-05,2]
[348862627,1736825441123,-500.0,9.999e-05,2]
[348862628,1736825441132,-672.56,9.999e-05,2]
[348862629,1736825441142,-500.0,9.999e-05,2]
[348862630,1736825441152,-500.0,9.999e-05,2]
[348862631,1736825441162,-958.05,9.999e-05,2]
[348862632,1736825441172,-500.0,9.999e-05,2]
[348862633,1736825441181,-1546.87,9.999e-05,2]
[348862634,1736825441190,-500.0,9.999e-05,2]
[348862635,1736825441200,-857.63,9.999e-05,2]
[348862636,1736825441209,-617.2,9.999e-05,2]
[348862637,1736825441219,-658.0,9.999e-05,2]
[348862638,1736825441228,-500.0,9.999e-05,2]
[348862639,1736825441237,-500.0,9.999e-05,2]
[348862640,1736825441247,-534.65,9.999e-05,2]
[348862641,1736825441256,-1747.84,9.999e-05,2]
[348862642,1736825441268,-500.0,9.999e-05,2]
[348862643,1736825441279,-500.0,9.999e-05,2]
[348862644,1736825441288,-810.42,9.999e-05,2]
[348862645,1736825441298,-634.2,9.999e-05,2]
[348862646,1736825441307,-666.63,9.999e-05,2]
[348862647,1736825441319,-500.0,9.999e-05,2]
[348862648,1736825441329,-1725.87,9.999e-05,2]
[348862649,1736825441338,-2215.0,9.999e-05,2]
[348862650,1736825441348,-500.0,9.999e-05,2]
[348862651,1736825441358,-500.0,9.999e-05,2]
[348862652,1736825441369,-610.97,9.999e-05,2]
[348862653,1736825441380,-1048.12,9.999e-05,2]
[348862654,1736825441391,-561.13,9.999e-05,2]
[348862655,1736825441402,-1008.3,9.999e-05,2]
[348862656,1736825441411,-500.0,9.999e-05,2]
[348862657,1736825441421,-2393.34,9.999e-05,2]
[348862658,1736825441431,-500.0,9.999e-05,2]
[348862659,1736825441442,-500.0,9.999e-05,2]
[348862660,1736825441452,-6362.33,9.999e-05,2]
[348862661,1736825441463,-886.17,9.999e-05,2]
[348862662,1736825441478,-895.21,9.999e-05,2]
[348862663,1736825441490,-500.0,9.999e-05,2]
[348862664,1736825441500,-500.0,9.999e-05,2]
[348862665,1736825441511,-803.06,9.999e-05,2]
[348862666,1736825441520,-661.72,9.999e-05,2]
[348862667,1736825441530,-1089.24,9.999e-05,2]
[348862668,1736825441541,-769.35,9.999e-05,2]
[348862669,1736825441552,-500.0,9.999e-05,2]
[348862670,1736825441562,-500.0,9.999e-05,2]
[348862671,1736825441572,-743.07,9.999e-05,2]
[348862672,1736825441581,-2309.61,9.999e-05,2]
[348862673,1736825441593,-951.37,9.999e-05,2]
[348862674,1736825441602,-1416.75,9.999e-05,2]
[348862675,1736825441612,-685.5,9.999e-05,2]
[348862676,1736825441621,-500.0,9.999e-05,2]
[348862677,1736825441631,-4280.01,9.999e-05,2]
[348862678,1736825441640,-2398.31,9.999e-05,2]
[348862679,1736825441650,-1732.99,9.999e-05,2]
[348862680,1736825441659,-500.0,9.999e-05,2]
[348862681,1736825441668,-500.0,9.999e-05,2]
[348862682,1736825441678,-500.0,9.999e-05,2]
[348862683,1736825441687,-3571.75,9.999e-05,2]
[348862684,1736825441696,-6193.89,9.999e-05,2]
[348862685,1736825441705,-500.0,9.999e-05,2]
[348862686,1736825441714,-500.0,9.999e-05,2]
[348862687,1736825441723,-2974.74,9.999e-05,2]
[348862688,1736825441731,-1071.54,9.999e-05,2]
[348862689,1736825441741,-2540.75,9.999e-05,2]
[348862690,1736825441751,-854.44,9.999e-05,2]
[348862691,1736825441760,-1087.58,9.999e-05,2]
[348862692,1736825441768,-500.0,9.999e-05,2]
[348862693,1736825441778,-500.0,9.999e-05,2]
[348862694,1736825441787,-3461.05,9.999e-05,2]
[348862695,1736825441796,-500.0,9.999e-05,2]
[348862696,1736825441804,-500.0,9.999e-05,2]
[348862697,1736825441813,-1433.55,9.999e-05,2]
[348862698,1736825441823,-572.61,9.999e-05,2]
[348862699,1736825441832,-500.0,9.999e-05,2]
[348862700,1736825441842,-548.26,9.999e-05,2]
[348862701,1736825441851,-1014.27,9.999e-05,2]
[348862702,1736825441860,-1705.8,9.999e-05,2]
[348862703,1736825441870,-1400602.20618152,0.0001,2]
[348862704,1736825442237,-519.86839141,0.0001,2]
[348862705,1736825442249,-720.95831577,0.0001,2]
[348862706,1736825442260,-518.48714087,0.0001,2]
[348862707,1736825442274,-10602.0,0.0001,2]
[348862708,1736825442285,-1850.7499469,0.0001,2]
[348862709,1736825442296,-11016.07889241,0.0001,2]
[348862710,1736825442307,-9073.84904788,0.0001,2]
[348862711,1736825442352,-500.0,9.998e-05,2]
[348862712,1736825442361,-2727.10847911,0.0001,2]
[348862713,1736825442402,-120679.56801089,0.0001,2]
[348862714,1736825442413,-1545.73815394,0.0001,2]
[348862715,1736825442424,-8461.24699589,0.0001,2]
[348862716,1736825442435,-108608.97797535,0.0001,2]
[348862717,1736825442446,-2738.32270792,0.0001,2]
[348862718,1736825442476,-538.88,0.0001,2]
[348862719,1736825442487,-13582.92350941,0.0001,2]
[348862721,1736825443621,-500.0,9.997e-05,2]
[348862722,1736825443634,-500.0,9.999e-05,2]
[348862723,1736825443650,-14449.64500799,0.0001,2]
[348862724,1736825443665,-1088.68292198,0.0001,2]
[348862725,1736825443681,-622.7692827,0.0001,2]
[348862743,1736825444936,-284.13346302,9.998e-05,2]
[348862744,1736825444949,-119.32659502,0.0001,2]
[348862745,1736825444964,-721.07638576,0.0001,2]
[348862746,1736825444979,-301.62258698,0.0001,2]
[348862747,1736825444993,-7037.11851222,0.0001,2]
[348862748,1736825445105,-500.0,9.999e-05,2]
[348862749,1736825445117,-12996.03407873,0.0001,2]
[348862750,1736825445131,-2462.80059111,0.0001,2]
[348862751,1736825445145,-797.586,0.0001,2]
[348862752,1736825445462,-500.0,9.998e-05,2]
[348862753,1736825445474,-15545.5864,0.0001,2]
[348862754,1736825445489,-4275.5011,0.0001,2]
[348862755,1736825446526,-346.6554933,0.0001,2]
[348862756,1736825448241,-500.0,9.998e-05,2]
[348862757,1736825448254,-134.73499999,9.999e-05,2]
[348862758,1736825448276,-491.6065,9.999e-05,2]
[348862768,1736825740452,1800.0,0.00023,120]
[348862769,1736825826271,5610.97,0.00019,31]
[348862771,1736826017142,870.89,8.219e-05,2]
[348862797,1736826632770,-3144.47402518,8.739e-05,2]
[348862798,1736826632781,-6143.53758481,8.739e-05,2]
[348862799,1736826632793,-14611.98839001,8.739e-05,2]
[348862800,1736826632803,-241.61,8.806e-05,2]
[348862801,1736826632813,-250.0,8.811e-05,2]
[348862802,1736826632822,-250.0,8.843e-05,2]
[348862803,1736826632832,-165.45,8.875e-05,2]
[348862804,1736826632841,-455.65,8.929e-05,2]
[348862805,1736826632850,-313.73,8.947e-05,2]
[348862806,1736826632859,-875.8,8.95e-05,2]
[348862807,1736826632868,-1543.09,8.95e-05,2]
[348862808,1736826632878,-990.81961107,8.967e-05,2]
[348862809,1736826632889,-9.18038893,8.967e-05,2]
[348862810,1736826632899,-250.0,8.993e-05,2]
[348862811,1736826632908,-207.24891146,9.066e-05,2]
[348862812,1736826632919,-92.75108854,9.066e-05,2]
[348862813,1736826632928,-407.91,9.095e-05,2]
[348862814,1736826632938,-166.72,9.282e-05,2]
[348862815,1736826632947,-400.0,9.3e-05,3]
[348862816,1736826632957,-800.0,9.4e-05,3]
[348862817,1736826632966,-171.353,9.5e-05,2]
[348862818,1736826632979,-913.99,9.5e-05,2]
[348862819,1736826632988,-1200.0,9.5e-05,3]
[348862820,1736826633000,-90.09665702,9.536e-05,2]
[348862821,1736826633072,-60.21334298,9.536e-05,2]
[348862822,1736826633082,-1600.0,9.6e-05,3]
[348862823,1736826633092,-2000.0,9.7e-05,3]
[348862824,1736826633101,-539.47859818,9.8e-05,2]
[348862825,1736826633113,-436.89999985,9.8e-05,2]
[348862826,1736826633126,-722.54233573,9.8e-05,2]
[348862827,1736826633137,-2721.717,9.8e-05,2]
[348862959,1736826638512,-558.49151701,9.8e-05,2]
[348862960,1736826638524,-7040.0,9.8e-05,2]
[348862961,1736826638535,-2268.14443911,9.8e-05,2]
[348862962,1736826638547,-18367.35906512,9.8e-05,2]
[348862968,1736826638833,-573.367045,9.8e-05,2]
[348862970,1736826638843,-400.0,9.8e-05,3]
[348862971,1736826638852,-3780.832955,9.9e-05,2]
[348862972,1736826638864,-1454.24614478,9.9e-05,2]
[348862973,1736826638875,-13720.83899822,9.9e-05,2]
[348862974,1736826638885,-353.0416,9.9e-05,2]
[348862975,1736826638895,-50000.0,9.9e-05,2]
[348862976,1736826638904,-50000.0,9.9e-05,3]
[348862977,1736826638913,-400.0,9.9e-05,3]
[348862978,1736826638923,-174.49417443,9.9e-05,2]
[348862979,1736826638932,-420.0,9.973e-05,2]
[348862980,1736826638942,-1625.2484781,9.992e-05,2]
[348862981,1736826638952,-1530.9500599,9.992e-05,2]
[348862982,1736826638962,-2143.5016388,9.992e-05,2]
[348862983,1736826638974,-1119.256579,9.992e-05,2]
[348862984,1736826638984,-1649.8059893,9.993e-05,2]
[348862985,1736826638993,-1674.3635006,9.993e-05,2]
[348862986,1736826639003,-1554.0827217,9.993e-05,2]
[348862987,1736826639012,-1577.2153834,9.993e-05,2]
[348862988,1736826639022,-2175.8899574,9.993e-05,2]
[348862989,1736826639032,-2208.2782761,9.993e-05,2]
[348862990,1736826639041,-1136.1685506,9.993e-05,2]
[348862991,1736826639051,-1153.0805222,9.993e-05,2]
[348862992,1736826639061,-500.0,9.995e-05,2]
[348862993,1736826639070,-2206.16,9.995e-05,2]
[348862994,1736826639080,-3884.74,9.995e-05,2]
[348862995,1736826639089,-2211.52,9.995e-05,2]
[348862996,1736826639099,-500.0,9.995e-05,2]
[348862997,1736826639109,-1549.23,9.995e-05,2]
[348862998,1736826639119,-3961.48,9.995e-05,2]
[348862999,1736826639130,-1319.61,9.995e-05,2]
[348863000,1736826639140,-500.0,9.995e-05,2]
[348863001,1736826639149,-500.0,9.995e-05,2]
[348863002,1736826639159,-503.19789908,9.995e-05,2]
[348863003,1736826639169,-500.0,9.995e-05,2]
[348863004,1736826639179,-500.0,9.995e-05,2]
[348863005,1736826639189,-1138.32,9.995e-05,2]
[348863006,1736826639199,-658.31,9.995e-05,2]
[348863007,1736826639209,-500.0,9.995e-05,2]
[348863008,1736826639219,-500.0,9.995e-05,2]
[348863009,1736826639228,-500.0,9.996e-05,2]
[348863010,1736826639239,-500.0,9.996e-05,2]
[348863011,1736826639248,-636.87,9.996e-05,2]
[348863012,1736826639258,-500.0,9.996e-05,2]
[348863013,1736826639268,-500.0,9.996e-05,2]
[348863014,1736826639278,-2355.03,9.996e-05,2]
[348863015,1736826639288,-500.0,9.996e-05,2]
[348863016,1736826639299,-409.92520004,9.996e-05,2]
[348863017,1736826639309,-500.0,9.996e-05,2]
[348863018,1736826639319,-500.0,9.996e-05,2]
[348863019,1736826639329,-500.0,9.996e-05,2]
[348863020,1736826639339,-500.0,9.996e-05,2]
[348863021,1736826639349,-500.0,9.996e-05,2]
[348863022,1736826639359,-500.0,9.996e-05,2]
[348863023,1736826639368,-500.0,9.996e-05,2]
[348863024,1736826639379,-500.0,9.996e-05,2]
[348863025,1736826639389,-500.0,9.996e-05,2]
[348863026,1736826639398,-500.0,9.996e-05,2]
[348863027,1736826639409,-500.0,9.996e-05,2]
[348863028,1736826639418,-500.0,9.996e-05,2]
[348863029,1736826639429,-510.58562038,9.996e-05,2]
[348863030,1736826639438,-500.0,9.996e-05,2]
[348863031,1736826639449,-500.0,9.996e-05,2]
[348863032,1736826639459,-500.0,9.996e-05,2]
[348863033,1736826639469,-500.0,9.996e-05,2]
[348863034,1736826639479,-500.0,9.996e-05,2]
[348863035,1736826639488,-1914.72,9.996e-05,2]
[348863036,1736826639498,-500.0,9.996e-05,2]
[348863037,1736826639507,-503.66404248,9.996e-05,2]
[348863038,1736826639516,-1157.56,9.996e-05,2]
[348863039,1736826639526,-507.43457053,9.996e-05,2]
[348863040,1736826639536,-500.0,9.996e-05,2]
[348863041,1736826639545,-192.62324255,9.996e-05,2]
[348863042,1736826639555,-500.0,9.996e-05,2]
[348863043,1736826639564,-500.0,9.996e-05,2]
[348863044,1736826639574,-500.0,9.996e-05,2]